[Event "Austrian Women Bundesliga 2023-24"]
[Site "Austria"]
[Date "2024.03.24"]
[Round "6.7"]
[White "Stadlinger, Lea"]
[Black "Vidic, Teja"]
[Result "0-1"]
[ECO "D00"]
[WhiteElo "1936"]
[BlackElo "2125"]
[Annotator "RC"]
[PlyCount "76"]
[EventDate "2023.11.21"]
[EventType "team-tourn"]
[EventCountry "AUT"]
[SourceTitle "playchess.com"]
[Source "ChessBase"]
[SourceQuality "1"]
[TimeControl "40/5400+30:1800+30"]

1. d4 {[%emt 0:00:02]} d5 {[%emt 0:00:05]} 2. Bf4 {[%emt 0:00:04]} Nf6 {[%emt 0:00:05]} 3. e3 {[%emt 0:00:05]} c5 {[%emt 0:00:11]} 4. dxc5 {[%emt 0:03:23]} Nc6 {[%emt 0:00:16]} 5. c3 {[%emt 0:13:02]} e5 {[%emt 0:06:39]} 6. Bg5 {[%emt 0:04:15]} Bxc5 {[%emt 0:00:08]} 7. Nf3 {[%emt 0:10:48]} Be6 {[%emt 0:07:38]} 8. Nbd2 {[%emt 0:05:00]} O-O {[%emt 0:03:21]} 9. Bb5 {[%emt 0:01:46]} e4 {[%emt 0:03:28]} 10. Nd4 {[%emt 0:03:28]} Nxd4 {[%emt 0:02:28]} 11. exd4 {[%emt 0:02:20]} Be7 {[%emt 0:00:59]} 12. O-O {[%emt 0:07:42]} Ne8 {[%emt 0:04:29]} 13. Bxe7 {[%emt 0:06:27]} Qxe7 {[%emt 0:00:06]} 14. Qe2 {[%emt 0:03:26]} Nd6 {[%emt 0:00:48]} 15. Ba4 {[%emt 0:00:15]} f5 {[%emt 0:03:33]} 16. f3 {[%emt 0:01:41]} b5 {[%emt 0:13:11]} 17. Bc2 {[%emt 0:08:25]} Rac8 {[%emt 0:08:16]} 18. fxe4 {[%emt 0:03:38]} fxe4 {[%emt 0:01:07]} 19. Nb3 {[%emt 0:09:41]} Qg5 {[%emt 0:02:21]} 20. Rxf8+ {[%emt 0:08:23]} Rxf8 {[%emt 0:00:05]} 21. Rf1 {[%emt 0:00:23]} Rxf1+ {[%emt 0:01:05]} 22. Qxf1 {[%emt 0:01:11]} Bg4 {[%emt 0:00:05]} 23. Bd1 {[%emt 0:02:21]} Qe3+ {[%emt 0:12:29]} 24. Kh1 {[%emt 0:00:13]} Bxd1 {[%emt 0:00:09]} 25. Qxd1 {[%emt 0:00:06]} Qf2 {[%emt 0:00:03]} 26. Nc5 {[%emt 0:01:57]} Nf5 {[%emt 0:03:12]} 27. h3 {[%emt 0:02:27]} Qxb2 {[%emt 0:11:51]} 28. Qg4 {[%emt 0:01:09]} Qc1+ {[%emt 0:00:04]} 29. Kh2 {[%emt 0:00:07]} g6 {[%emt 0:00:04]} 30. Nd7 {[%emt 0:01:04]} Kg7 {[%emt 0:01:18]} 31. Nc5 h5 {[%emt 0:03:04]} 32. Qe2 {[%emt 0:00:49]} Qf4+ {[%emt 0:04:04]} 33. Kg1 {[%emt 0:00:26]} Qc1+ {[%emt 0:00:05]} 34. Kh2 {[%emt 0:00:17]} h4 {[%emt 0:03:34]} 35. Ne6+ {[%emt 0:00:29]} Kf6 {[%emt 0:00:17]} 36. Nc5 {[%emt 0:00:31]} Ng3 {[%emt 0:02:12]} 37. Qf2+ {[%emt 0:00:06]} Ke7 {[%emt 0:00:18]} 38. Qg1 {[%emt 0:00:42]} Qxc3 {[%emt 0:00:32]} 0-1

[Event "Austrian Women Bundesliga 2023-24"]
[Site "Austria"]
[Date "2024.03.24"]
[Round "6.8"]
[White "Kolba, Anastasiya"]
[Black "Bakalarz, Grazyna"]
[Result "1/2-1/2"]
[ECO "C47"]
[WhiteElo "2031"]
[BlackElo "1923"]
[Annotator "NA RC"]
[PlyCount "64"]
[EventDate "2023.11.21"]
[EventType "team-tourn"]
[EventCountry "AUT"]
[SourceTitle "playchess.com"]
[Source "ChessBase"]
[SourceQuality "1"]
[TimeControl "40/5400+30:1800+30"]

1. e4 {[%emt 0:00:17]} e5 {[%emt 0:00:05]} 2. Nc3 {[%emt 0:00:49]} Nf6 {[%emt 0:00:10]} 3. Nf3 {[%emt 0:02:21]} Nc6 {[%emt 0:01:02]} 4. d4 {[%emt 0:07:07]} exd4 {[%emt 0:00:23]} 5. Nxd4 {[%emt 0:00:15]} Bb4 {[%emt 0:01:28]} 6. Nxc6 {[%emt 0:00:20]} bxc6 {[%emt 0:00:16]} 7. Bd3 {[%emt 0:00:59]} O-O {[%emt 0:04:14]} 8. O-O {[%emt 0:01:27]} d5 {[%emt 0:04:27]} 9. exd5 {[%emt 0:07:01]} cxd5 {[%emt 0:00:24]} 10. Bg5 {[%emt 0:00:26]} Bxc3 {[%emt 0:02:38]} 11. bxc3 {[%emt 0:00:22]} h6 {[%emt 0:11:26]} 12. Bh4 {[%emt 0:00:47]} Qd6 {[%emt 0:05:11]} 13. Bg3 {[%emt 0:00:54]} Qc5 {[%emt 0:03:22]} 14. Qf3 {[%emt 0:09:21]} Bg4 {[%emt 0:10:32]} 15. Qf4 {[%emt 0:00:38]} Qxc3 {[%emt 0:01:40]} 16. Qxc7 {[%emt 0:00:47]} Qxc7 {[%emt 0:01:04]} 17. Bxc7 {[%emt 0:00:10]} Rfe8 {[%emt 0:03:25]} 18. Rfe1 {[%emt 0:00:44]} Bd7 {[%emt 0:06:54]} 19. Rxe8+ {[%emt 0:05:45]} Rxe8 {[%emt 0:00:30]} 20. Rb1 {[%emt 0:01:18]} Ne4 {[%emt 0:05:09]} 21. f3 {[%emt 0:05:21]} Nc5 {[%emt 0:02:19]} 22. Bb5 {[%emt 0:05:00]} Rc8 {[%emt 0:02:02]} 23. Bd6 {[%emt 0:01:11]} Bf5 {[%emt 0:01:47]} 24. Rd1 {[%emt 0:07:05]} Be6 {[%emt 0:04:48]} 25. Be5 {[%emt 0:05:46]} a6 {[%emt 0:01:34]} 26. Bd3 {[%emt 0:03:20]} Nxd3 {[%emt 0:00:57]} 27. cxd3 {[%emt 0:00:16]} Rc2 {[%emt 0:01:00]} 28. a3 {[%emt 0:00:42]} Bd7 {[%emt 0:06:25]} 29. d4 {[%emt 0:03:19]} Bb5 {[%emt 0:01:17]} 30. Bd6 {[%emt 0:00:27]} Ra2 {[%emt 0:01:46]} 31. Bb4 {[%emt 0:02:49]} Bc4 {[%emt 0:02:01]} 32. Rd2 {[%emt 0:00:49]} Rxd2 {[%emt 0:00:06]} 1/2-1/2

[Event "Austrian Women Bundesliga 2023-24"]
[Site "Austria"]
[Date "2024.03.24"]
[Round "6.9"]
[White "Terbe, Julianna"]
[Black "Mihelic, Vesna"]
[Result "1/2-1/2"]
[ECO "E04"]
[WhiteElo "2289"]
[BlackElo "2140"]
[Annotator "RC"]
[PlyCount "98"]
[EventDate "2023.11.21"]
[EventType "team-tourn"]
[EventCountry "AUT"]
[SourceTitle "playchess.com"]
[Source "ChessBase"]
[SourceQuality "1"]
[TimeControl "40/5400+30:1800+30"]

1. d4 {[%emt 0:00:03]} d5 {[%emt 0:00:06]} 2. c4 {[%emt 0:00:06]} e6 {[%emt 0:00:05]} 3. Nf3 {[%emt 0:00:03]} Nf6 {[%emt 0:00:08]} 4. g3 {[%emt 0:00:06]} dxc4 {[%emt 0:00:05]} 5. Bg2 {[%emt 0:00:06]} Bb4+ {[%emt 0:00:07]} 6. Nbd2 {[%emt 0:00:06]} O-O {[%emt 0:05:36]} 7. Qc2 {[%emt 0:00:15]} c5 {[%emt 0:11:10]} 8. dxc5 {[%emt 0:00:21]} Nc6 {[%emt 0:05:33]} 9. O-O {[%emt 0:00:14]} Bxc5 {[%emt 0:01:36]} 10. Nxc4 {[%emt 0:00:18]} Nb4 {[%emt 0:04:04]} 11. Qd2 {[%emt 0:00:45]} b5 {[%emt 0:02:37]} 12. a3 {[%emt 0:00:12]} Nbd5 {[%emt 0:02:07]} 13. Na5 {[%emt 0:00:25]} Ne4 {[%emt 0:02:59]} 14. Qe1 {[%emt 0:00:15]} b4 {[%emt 0:11:57]} 15. Nb3 {[%emt 0:00:05]} bxa3 {[%emt 0:03:26]} 16. Nxc5 {[%emt 0:04:20]} Nxc5 {[%emt 0:03:40]} 17. Rxa3 {[%emt 0:03:26]} Qb6 {[%emt 0:01:41]} 18. Ne5 {[%emt 0:11:16]} Bb7 {[%emt 0:05:20]} 19. Nc4 {[%emt 0:04:40]} Qc7 {[%emt 0:07:14]} 20. e4 {[%emt 0:15:39]} Ba6 {[%emt 0:09:51]} 21. Rxa6 {[%emt 0:10:50]} Nxa6 {[%emt 0:00:02]} 22. exd5 {[%emt 0:00:11]} Qxc4 {[%emt 0:00:06]} 23. dxe6 {[%emt 0:00:03]} Rab8 {[%emt 0:07:54]} 24. exf7+ {[%emt 0:05:54]} Rxf7 {[%emt 0:00:48]} 25. Qa5 {[%emt 0:03:20]} Nb4 {[%emt 0:06:24]} 26. Be3 {[%emt 0:03:15]} Rb5 {[%emt 0:02:01]} 27. Qa4 {[%emt 0:02:17]} a6 {[%emt 0:03:53]} 28. Rc1 {[%emt 0:02:40]} Qe6 {[%emt 0:00:20]} 29. Bf1 {[%emt 0:03:51]} Nd5 {[%emt 0:02:55]} 30. Bxb5 {[%emt 0:02:53]} axb5 {[%emt 0:00:01]} 31. Qd4 {[%emt 0:02:36]} Qf5 {[%emt 0:00:35]} 32. Qd2 {[%emt 0:11:33]} h6 {[%emt 0:00:56]} 33. Rc5 {[%emt 0:05:37]} Qb1+ {[%emt 0:00:06]} 34. Qc1 {[%emt 0:01:06]} Qd3 {[%emt 0:00:40]} 35. Qc2 {[%emt 0:02:31]} Qxc2 {[%emt 0:00:51]} 36. Rxc2 {[%emt 0:00:01]} Nxe3 {[%emt 0:00:09]} 37. fxe3 {[%emt 0:00:01]} Rd7 {[%emt 0:00:12]} 38. Kf2 {[%emt 0:00:14]} Rd3 {[%emt 0:00:56]} 39. Kf3 {[%emt 0:00:08]} Rb3 {[%emt 0:00:16]} 40. Ke4 {[%emt 0:00:15]} Kf7 {[%emt 0:00:17]} 41. Kd4 {[%emt 0:31:16]} Ke6 {[%emt 0:31:06]} 42. e4 {[%emt 0:00:40]} Rb4+ {[%emt 0:00:00]} 43. Kc5 {[%emt 0:00:00]} Rb3 {[%emt 0:00:00]} 44. Kd4 {[%emt 0:00:00]} Rb4+ {[%emt 0:00:00]} 45. Ke3 {[%emt 0:00:00]} Ke5 {[%emt 0:00:00]} 46. Rc5+ {[%emt 0:00:00]} Kd6 {[%emt 0:00:00]} 47. Rd5+ {[%emt 0:00:00]} Ke6 {[%emt 0:00:00]} 48. Rd2 {[%emt 0:01:21]} Ke5 {[%emt 0:00:00]} 49. Rd5+ {[%emt 0:00:05]} Ke6 {[%emt 0:00:00]} 1/2-1/2

[Event "Austrian Women Bundesliga 2023-24"]
[Site "Austria"]
[Date "2024.03.24"]
[Round "6.10"]
[White "Goeschl, Ortrun"]
[Black "Terbe, Zsuzsanna"]
[Result "0-1"]
[ECO "A00"]
[WhiteElo "1952"]
[BlackElo "2178"]
[Annotator "RC"]
[PlyCount "72"]
[EventDate "2023.11.21"]
[EventType "team-tourn"]
[EventCountry "AUT"]
[SourceTitle "playchess.com"]
[Source "ChessBase"]
[SourceQuality "1"]
[TimeControl "40/5400+30:1800+30"]

1. Nc3 {[%emt 0:00:06]} d5 {[%emt 0:00:12]} 2. e4 {[%emt 0:00:19]} d4 {[%emt 0:00:12]} 3. Nce2 {[%emt 0:00:07]} e5 {[%emt 0:00:06]} 4. Ng3 {[%emt 0:00:06]} Be6 {[%emt 0:00:18]} 5. c3 {[%emt 0:01:20]} Nc6 {[%emt 0:01:19]} 6. Nf3 {[%emt 0:01:24]} d3 {[%emt 0:10:53]} 7. Qa4 {[%emt 0:00:57]} Qd6 {[%emt 0:00:35]} 8. b4 {[%emt 0:09:28]} f6 {[%emt 0:39:41]} 9. b5 {[%emt 0:08:14]} Nd8 {[%emt 0:00:16]} 10. c4 {[%emt 0:09:48]} h5 {[%emt 0:06:50]} 11. h4 {[%emt 0:02:04]} Nh6 {[%emt 0:10:03]} 12. Qb3 {[%emt 0:02:11]} Ng4 {[%emt 0:00:20]} 13. Bxd3 {[%emt 0:01:56]} Qb6 {[%emt 0:00:11]} 14. Rf1 {[%emt 0:00:22]} Bc5 {[%emt 0:00:11]} 15. Nh1 {[%emt 0:00:55]} Bf7 {[%emt 0:01:25]} 16. a4 {[%emt 0:09:49]} a5 {[%emt 0:00:18]} 17. Ba3 {[%emt 0:01:52]} Ne6 {[%emt 0:00:27]} 18. g3 {[%emt 0:01:44]} O-O-O {[%emt 0:04:30]} 19. Bc2 {[%emt 0:10:27]} Rd7 {[%emt 0:01:41]} 20. Qc3 {[%emt 0:03:16]} Rhd8 {[%emt 0:04:27]} 21. Rd1 {[%emt 0:11:45]} Bd4 {[%emt 0:05:12]} 22. Nxd4 {[%emt 0:02:50]} exd4 {[%emt 0:00:09]} 23. Qb2 {[%emt 0:10:51]} d3 {[%emt 0:01:14]} 24. Bb1 {[%emt 0:02:01]} Nh2 {[%emt 0:04:52]} 25. Rc1 {[%emt 0:04:14]} Nc5 {[%emt 0:01:35]} 26. Bxc5 {[%emt 0:02:27]} Qxc5 {[%emt 0:00:15]} 27. f3 {[%emt 0:01:41]} Re8 {[%emt 0:02:27]} 28. Nf2 {[%emt 0:01:32]} Nxf3+ {[%emt 0:00:21]} 29. Kd1 {[%emt 0:00:00]} Nh2 {[%emt 0:01:48]} 30. Nxd3 {[%emt 0:00:02]} Rxd3 {[%emt 0:00:27]} 31. Bxd3 {[%emt 0:00:01]} Nxf1 {[%emt 0:00:09]} 32. Bxf1 {[%emt 0:00:05]} Rxe4 {[%emt 0:01:29]} 33. d3 {[%emt 0:01:30]} Re3 {[%emt 0:00:59]} 34. d4 {[%emt 0:00:41]} Qf5 {[%emt 0:01:22]} 35. Be2 {[%emt 0:01:16]} Rxg3 {[%emt 0:00:31]} 36. Qd2 {[%emt 0:00:22]} Rg1+ {[%emt 0:00:11]} 0-1

[Event "Austrian Women Bundesliga 2023-24"]
[Site "Austria"]
[Date "2024.03.24"]
[Round "6.11"]
[White "Karacsonyi, Kata"]
[Black "Tscharnuter, Alexandra"]
[Result "1-0"]
[ECO "C78"]
[WhiteElo "2137"]
[BlackElo "1842"]
[Annotator "RC"]
[PlyCount "77"]
[EventDate "2023.11.21"]
[EventType "team-tourn"]
[EventCountry "AUT"]
[SourceTitle "playchess.com"]
[Source "ChessBase"]
[SourceQuality "1"]
[TimeControl "40/5400+30:1800+30"]

1. e4 {[%emt 0:00:03]} e5 {[%emt 0:00:08]} 2. Nf3 {[%emt 0:00:07]} Nc6 {[%emt 0:00:15]} 3. Bb5 {[%emt 0:00:07]} a6 {[%emt 0:00:26]} 4. Ba4 {[%emt 0:00:09]} Nf6 {[%emt 0:00:28]} 5. O-O {[%emt 0:00:11]} b5 {[%emt 0:03:17]} 6. Bb3 {[%emt 0:00:26]} Be7 {[%emt 0:00:07]} 7. d3 {[%emt 0:00:14]} O-O {[%emt 0:00:27]} 8. Bd5 {[%emt 0:06:26]} Nxd5 {[%emt 0:07:39]} 9. exd5 {[%emt 0:00:08]} Nb4 {[%emt 0:00:36]} 10. c4 {[%emt 0:00:19]} bxc4 {[%emt 0:01:04]} 11. dxc4 {[%emt 0:01:55]} e4 {[%emt 0:01:22]} 12. Ne1 {[%emt 0:00:58]} a5 {[%emt 0:02:57]} 13. Nc3 {[%emt 0:02:39]} f5 {[%emt 0:02:54]} 14. a3 {[%emt 0:00:29]} Na6 {[%emt 0:00:37]} 15. d6 {[%emt 0:07:21]} Bxd6 {[%emt 0:13:59]} 16. Qd5+ {[%emt 0:00:15]} Kh8 {[%emt 0:00:12]} 17. Qxa8 {[%emt 0:00:52]} c6 {[%emt 0:00:20]} 18. g3 {[%emt 0:35:14]} Qc7 {[%emt 0:14:39]} 19. Bf4 {[%emt 0:06:13]} Bxf4 {[%emt 0:11:31]} 20. gxf4 {[%emt 0:00:07]} Kg8 {[%emt 0:04:45]} 21. Nb5 {[%emt 0:10:44]} cxb5 {[%emt 0:04:04]} 22. Qd5+ {[%emt 0:00:18]} Kh8 {[%emt 0:00:43]} 23. cxb5 {[%emt 0:01:07]} Nc5 {[%emt 0:01:06]} 24. Rc1 {[%emt 0:01:48]} d6 {[%emt 0:00:36]} 25. b4 {[%emt 0:00:27]} axb4 {[%emt 0:01:02]} 26. axb4 {[%emt 0:00:12]} Bb7 {[%emt 0:00:24]} 27. Qd4 {[%emt 0:04:26]} Qf7 {[%emt 0:06:00]} 28. bxc5 {[%emt 0:01:52]} Qg6+ {[%emt 0:00:46]} 29. Ng2 {[%emt 0:03:09]} dxc5 {[%emt 0:00:59]} 30. Qxc5 {[%emt 0:00:11]} Re8 {[%emt 0:01:17]} 31. Qe3 {[%emt 0:00:48]} Rd8 {[%emt 0:01:14]} 32. Rfd1 {[%emt 0:01:39]} Rd3 {[%emt 0:01:33]} 33. Qa7 {[%emt 0:01:15]} Bd5 {[%emt 0:00:49]} 34. Qb8+ {[%emt 0:00:43]} Bg8 {[%emt 0:00:15]} 35. Rxd3 {[%emt 0:00:11]} exd3 {[%emt 0:00:44]} 36. Rc8 {[%emt 0:00:10]} Qe6 {[%emt 0:01:52]} 37. Rxg8+ {[%emt 0:00:06]} Qxg8 {[%emt 0:00:06]} 38. Qc8 Qf8 39. Qxf8# {[%emt 0:00:00]} 1-0

[Event "Austrian Women Bundesliga 2023-24"]
[Site "Austria"]
[Date "2024.03.24"]
[Round "6.12"]
[White "Zeber, Katja"]
[Black "Exler, Veronika"]
[Result "0-1"]
[ECO "B10"]
[WhiteElo "1789"]
[BlackElo "2157"]
[Annotator "RC"]
[PlyCount "80"]
[EventDate "2023.11.21"]
[EventType "team-tourn"]
[EventCountry "AUT"]
[SourceTitle "playchess.com"]
[Source "ChessBase"]
[SourceQuality "1"]
[TimeControl "40/5400+30:1800+30"]

1. e4 {[%emt 0:00:04]} c6 {[%emt 0:00:04]} 2. Nc3 {[%emt 0:01:00]} d5 {[%emt 0:00:04]} 3. exd5 {[%emt 0:01:02]} cxd5 {[%emt 0:00:06]} 4. d4 {[%emt 0:00:47]} Nf6 {[%emt 0:02:47]} 5. Nf3 {[%emt 0:08:07]} Bg4 {[%emt 0:00:22]} 6. Be2 {[%emt 0:00:32]} Nc6 {[%emt 0:01:27]} 7. Bf4 {[%emt 0:05:32]} a6 {[%emt 0:11:00]} 8. Ne5 {[%emt 0:11:05]} Bxe2 {[%emt 0:02:26]} 9. Nxe2 {[%emt 0:01:07]} e6 {[%emt 0:02:49]} 10. c3 {[%emt 0:05:23]} Nxe5 {[%emt 0:09:01]} 11. Bxe5 {[%emt 0:07:28]} Be7 {[%emt 0:06:07]} 12. O-O {[%emt 0:03:04]} O-O {[%emt 0:00:04]} 13. Ng3 {[%emt 0:08:35]} g6 {[%emt 0:18:25]} 14. Re1 {[%emt 0:12:01]} b5 {[%emt 0:04:32]} 15. a3 {[%emt 0:05:15]} a5 {[%emt 0:14:53]} 16. Qf3 {[%emt 0:09:42]} Re8 {[%emt 0:01:40]} 17. h4 {[%emt 0:10:22]} h5 {[%emt 0:01:46]} 18. Bf4 {[%emt 0:05:20]} Ng4 {[%emt 0:05:18]} 19. Bg5 {[%emt 0:02:11]} Bxg5 {[%emt 0:00:38]} 20. hxg5 {[%emt 0:00:01]} Qxg5 {[%emt 0:00:09]} 21. Nf1 {[%emt 0:01:20]} Rab8 {[%emt 0:01:34]} 22. b4 {[%emt 0:00:40]} a4 {[%emt 0:02:24]} 23. Ne3 {[%emt 0:00:41]} Nf6 {[%emt 0:03:42]} 24. Rac1 {[%emt 0:00:31]} Rec8 {[%emt 0:02:04]} 25. Qh3 {[%emt 0:00:23]} Ne4 {[%emt 0:01:36]} 26. Nf1 {[%emt 0:00:31]} Qf4 {[%emt 0:02:02]} 27. Qe3 {[%emt 0:00:19]} Qxe3 {[%emt 0:02:53]} 28. Rxe3 {[%emt 0:00:03]} Rc6 {[%emt 0:00:34]} 29. f3 {[%emt 0:00:20]} Nd6 {[%emt 0:00:04]} 30. Ng3 {[%emt 0:00:46]} Nc4 {[%emt 0:00:13]} 31. Re2 {[%emt 0:00:55]} Nxa3 {[%emt 0:00:10]} 32. Ra2 {[%emt 0:00:25]} Nc4 {[%emt 0:00:05]} 33. Ne2 {[%emt 0:00:51]} Rbc8 {[%emt 0:00:12]} 34. Kf2 {[%emt 0:00:29]} Kg7 {[%emt 0:00:10]} 35. Nf4 {[%emt 0:00:31]} Nd6 {[%emt 0:00:31]} 36. Ne2 {[%emt 0:00:20]} Nf5 {[%emt 0:00:36]} 37. Rac2 {[%emt 0:00:28]} g5 {[%emt 0:01:04]} 38. Ng3 {[%emt 0:00:32]} Nxd4 {[%emt 0:01:49]} 39. cxd4 {[%emt 0:00:42]} Rxc2+ {[%emt 0:00:06]} 40. Rxc2 {[%emt 0:00:08]} Rxc2+ {[%emt 0:00:03]} 0-1

[Event "Austrian Women Bundesliga 2023-24"]
[Site "Austria"]
[Date "2024.03.24"]
[Round "6.13"]
[White "Polterauer, Chiara"]
[Black "Katter, Katharina"]
[Result "1/2-1/2"]
[ECO "B23"]
[WhiteElo "2194"]
[BlackElo "1932"]
[Annotator "RC"]
[PlyCount "77"]
[EventDate "2023.11.21"]
[EventType "team-tourn"]
[EventCountry "AUT"]
[SourceTitle "playchess.com"]
[Source "ChessBase"]
[SourceQuality "1"]
[TimeControl "40/5400+30:1800+30"]

1. e4 {[%emt 0:00:03]} c5 {[%emt 0:00:09]} 2. Nc3 {[%emt 0:00:06]} a6 {[%emt 0:00:13]} 3. Nge2 {[%emt 0:00:14]} d6 {[%emt 0:00:37]} 4. g3 {[%emt 0:00:15]} e5 {[%emt 0:01:59]} 5. Bg2 {[%emt 0:00:48]} Ne7 {[%emt 0:01:00]} 6. d3 {[%emt 0:03:31]} g6 {[%emt 0:00:30]} 7. Bg5 {[%emt 0:02:14]} Qa5 {[%emt 0:05:58]} 8. O-O {[%emt 0:03:29]} Nd7 {[%emt 0:01:51]} 9. Bxe7 {[%emt 0:10:52]} Bxe7 {[%emt 0:00:15]} 10. Nd5 {[%emt 0:00:03]} Qd8 {[%emt 0:08:01]} 11. Nec3 {[%emt 0:04:12]} O-O {[%emt 0:02:19]} 12. Nxe7+ {[%emt 0:01:01]} Qxe7 {[%emt 0:00:09]} 13. Nd5 {[%emt 0:00:03]} Qd8 {[%emt 0:00:26]} 14. f4 {[%emt 0:01:58]} Nb6 {[%emt 0:08:36]} 15. Ne3 {[%emt 0:00:43]} f6 {[%emt 0:03:42]} 16. h4 {[%emt 0:03:38]} exf4 {[%emt 0:04:45]} 17. Rxf4 {[%emt 0:00:46]} Be6 {[%emt 0:01:54]} 18. Qf3 {[%emt 0:02:48]} Nd7 {[%emt 0:04:06]} 19. g4 {[%emt 0:02:30]} Ne5 {[%emt 0:01:48]} 20. Qg3 {[%emt 0:00:42]} Qb6 {[%emt 0:03:19]} 21. b3 {[%emt 0:07:37]} c4 {[%emt 0:03:12]} 22. dxc4 {[%emt 0:02:19]} Nxg4 {[%emt 0:01:11]} 23. Re1 {[%emt 0:01:32]} h5 {[%emt 0:10:07]} 24. Kh1 {[%emt 0:04:42]} g5 {[%emt 0:01:15]} 25. Rff1 {[%emt 0:07:03]} gxh4 {[%emt 0:15:49]} 26. Qf4 {[%emt 0:02:48]} Qd4 {[%emt 0:00:26]} 27. Bh3 {[%emt 0:13:31]} Qe5 {[%emt 0:14:16]} 28. Bxg4 {[%emt 0:00:30]} hxg4 {[%emt 0:00:27]} 29. Nxg4 {[%emt 0:00:11]} Qxf4 {[%emt 0:00:23]} 30. Rxf4 {[%emt 0:00:05]} Bxg4 {[%emt 0:00:33]} 31. Rxg4+ {[%emt 0:00:03]} Kf7 {[%emt 0:00:05]} 32. Rxh4 {[%emt 0:00:32]} Rh8 {[%emt 0:00:15]} 33. Rxh8 {[%emt 0:01:42]} Rxh8+ {[%emt 0:00:01]} 34. Kg2 {[%emt 0:00:06]} Ke6 {[%emt 0:00:14]} 35. Kg3 {[%emt 0:05:40]} Ke5 {[%emt 0:00:17]} 36. c3 {[%emt 0:00:22]} Rg8+ {[%emt 0:00:32]} 37. Kf3 {[%emt 0:00:24]} Rh8 {[%emt 0:00:07]} 38. Kg3 {[%emt 0:05:11]} Rg8+ {[%emt 0:00:06]} 39. Kf3 {[%emt 0:02:52]} 1/2-1/2

[Event "Austrian Women Bundesliga 2023-24"]
[Site "Austria"]
[Date "2024.03.24"]
[Round "6.14"]
[White "Batyte, Daiva"]
[Black "Schloffer, Jasmin-Denise"]
[Result "1-0"]
[ECO "A05"]
[WhiteElo "2046"]
[BlackElo "2167"]
[Annotator "RC"]
[PlyCount "67"]
[EventDate "2023.11.21"]
[EventType "team-tourn"]
[EventCountry "AUT"]
[SourceTitle "playchess.com"]
[Source "ChessBase"]
[SourceQuality "1"]
[TimeControl "40/5400+30:1800+30"]

1. Nf3 {[%emt 0:00:02]} Nf6 {[%emt 0:00:06]} 2. b3 {[%emt 0:00:35]} e6 {[%emt 0:01:53]} 3. Bb2 {[%emt 0:00:27]} b6 {[%emt 0:01:31]} 4. g3 {[%emt 0:00:38]} Bb7 {[%emt 0:00:06]} 5. Bg2 {[%emt 0:00:36]} Be7 {[%emt 0:01:01]} 6. O-O {[%emt 0:00:17]} O-O {[%emt 0:00:05]} 7. c4 {[%emt 0:01:12]} c5 {[%emt 0:01:38]} 8. Nc3 {[%emt 0:01:25]} d6 {[%emt 0:00:57]} 9. e3 {[%emt 0:07:38]} Nbd7 {[%emt 0:03:36]} 10. d4 {[%emt 0:00:31]} a6 {[%emt 0:04:25]} 11. Re1 {[%emt 0:03:35]} Qc7 {[%emt 0:08:59]} 12. e4 {[%emt 0:04:22]} cxd4 {[%emt 0:02:26]} 13. Nxd4 {[%emt 0:01:20]} Rfe8 {[%emt 0:02:30]} 14. h3 {[%emt 0:02:43]} Rac8 {[%emt 0:04:58]} 15. a4 {[%emt 0:04:26]} Qb8 {[%emt 0:04:29]} 16. a5 {[%emt 0:03:13]} bxa5 {[%emt 0:14:08]} 17. Rxa5 {[%emt 0:01:25]} d5 {[%emt 0:03:04]} 18. exd5 {[%emt 0:01:20]} exd5 {[%emt 0:00:23]} 19. Rxe7 {[%emt 0:08:27]} Rxe7 {[%emt 0:00:32]} 20. Nxd5 {[%emt 0:04:43]} Bxd5 {[%emt 0:06:21]} 21. Bxd5 {[%emt 0:01:38]} Qb4 {[%emt 0:01:27]} 22. Ra4 {[%emt 0:01:46]} Re1+ {[%emt 0:02:05]} 23. Kg2 {[%emt 0:00:17]} Qe7 {[%emt 0:00:56]} 24. Qd2 {[%emt 0:04:05]} Nxd5 {[%emt 0:03:45]} 25. cxd5 {[%emt 0:00:53]} Qe4+ {[%emt 0:16:58]} 26. Nf3 {[%emt 0:00:17]} Re2 {[%emt 0:00:04]} 27. Rb4 Qd4 28. Rxd4 {[%emt 0:01:06]} Re3 29. Re4 Rxe4 {[%emt 0:02:10]} 30. Ng5 {[%emt 0:02:18]} Ree8 {[%emt 0:00:39]} 31. Qd3 {[%emt 0:00:21]} g6 {[%emt 0:00:37]} 32. Qd4 {[%emt 0:00:43]} f6 {[%emt 0:00:41]} 33. Ne4 {[%emt 0:00:15]} Rf8 {[%emt 0:00:41]} 34. Ba3 {[%emt 0:00:15]} 1-0